fUSD/lending_fUSD_20260116
["ID","MTS","AMOUNT","RATE_DAILY","PERIOD"]
[402131179,1768535438467,-545.45477895,0.00018,2]
[402131180,1768535438478,-479.955,0.00018,2]
[402131181,1768535438489,-1604606.56383466,0.00018,2]
[402131182,1768535438538,-540.01220046,0.00018,2]
[402131183,1768535438549,-3143.16561874,0.00018,2]
[402131191,1768535439957,-4923703.7217689,0.00018,2]
[402131192,1768535439966,-171076.9789937,0.00018,2]
[402131193,1768535439975,-14241.66323631,0.00018,2]
[402131194,1768535439985,-1444506.35952255,0.00018,2]
[402131195,1768535439994,-1401.62327149,0.00018,2]
[402131196,1768535440003,-126580.2209824,0.00018,2]
[402131197,1768535440013,-3115.0656029,0.00018,2]
[402131198,1768535440022,-174.15,0.00018,2]
[402131199,1768535440031,-1732.0,0.00018006,2]
[402131200,1768535440043,-5189.91945003,0.00018014,2]
[402131201,1768535440052,-415.4250427,0.00018019,2]
[402131202,1768535440061,-500.0,0.00018048,2]
[402131203,1768535440070,-200.0,0.00018049,2]
[402131204,1768535440079,-1732.0,0.00018061,2]
[402131205,1768535440088,-1777.47842535,0.000181,2]
[402131206,1768535440098,-1101.0,0.00018125,2]
[402131207,1768535440107,-757.8,0.00018192,2]
[402131208,1768535440116,-1732.0,0.0001821,2]
[402131209,1768535440126,-1732.0,0.0001825,2]
[402131210,1768535440137,-888.93,0.00018263,2]
[402131211,1768535440146,-708.59,0.00018273,2]
[402131212,1768535440155,-166.66,0.00018315,2]
[402131213,1768535440164,-1000.0,0.00018322,2]
[402131214,1768535440173,-1732.0,0.00018327,2]
[402131215,1768535440183,-1732.0,0.00018348,2]
[402131216,1768535440191,-28057.27608749,0.00018356,2]
[402131217,1768535440203,-886.52454978,0.00018356,2]
[402131224,1768535442895,-31414.98013788,0.00018356,2]
[402131230,1768535445472,-2726.21303154,0.00018356,2]
[402131231,1768535445583,-2871.9693331,0.00018356,2]
[402131232,1768535445633,-22400.40686021,0.00018356,2]
[402131233,1768535445644,-1732.0,0.00018366,2]
[402131234,1768535445653,-1732.0,0.00018395,2]
[402131235,1768535445663,-1732.0,0.00018524,2]
[402131236,1768535445673,-1370.53,0.00018533,2]
[402131237,1768535445683,-8977.36,0.00018533,2]
[402131238,1768535445694,-888.93,0.00018537,2]
[402131239,1768535445704,-2955.0,0.00018541,2]
[402131240,1768535445713,-1732.0,0.00018567,2]
[402131241,1768535445723,-935.0,0.00018659,2]
[402131242,1768535445732,-1732.0,0.00018666,2]
[402131243,1768535445741,-2955.0,0.00018682,2]
[402131244,1768535445751,-1732.0,0.00018701,2]
[402131245,1768535445760,-1837.77298905,0.00018749,5]
[402131246,1768535445769,-2955.0,0.00018771,2]
[402131247,1768535445788,-2955.0,0.00018776,2]
[402131248,1768535445798,-151.5,0.000188,2]
[402131249,1768535445807,-151.5,0.000188,2]
[402131250,1768535445816,-151.5,0.000188,2]
[402131251,1768535445825,-151.5,0.000188,2]
[402131252,1768535445835,-151.5,0.000188,2]
[402131253,1768535445844,-151.5,0.000188,2]
[402131254,1768535445853,-151.5,0.000188,2]
[402131255,1768535445862,-151.5,0.000188,2]
[402131256,1768535445871,-151.5,0.000188,2]
[402131257,1768535445880,-151.5,0.000188,2]
[402131258,1768535445890,-151.5,0.000188,2]
[402131259,1768535445899,-151.5,0.000188,2]
[402131261,1768535445908,-151.5,0.000188,2]
[402131263,1768535445918,-151.5,0.000188,2]
[402131264,1768535445927,-151.5,0.000188,2]
[402131265,1768535445937,-151.5,0.000188,2]
[402131266,1768535445946,-151.5,0.000188,2]
[402131267,1768535445955,-151.5,0.000188,2]
[402131268,1768535445964,-151.5,0.000188,2]
[402131269,1768535445973,-151.5,0.000188,2]
[402131270,1768535445983,-151.5,0.000188,2]
[402131271,1768535445992,-151.5,0.000188,2]
[402131272,1768535446002,-151.5,0.000188,2]
[402131273,1768535446011,-151.5,0.000188,2]
[402131274,1768535446020,-151.5,0.000188,2]
[402131275,1768535446029,-151.5,0.000188,2]
[402131276,1768535446038,-151.5,0.000188,2]
[402131277,1768535446047,-151.5,0.000188,2]
[402131278,1768535446057,-151.5,0.000188,2]
[402131279,1768535446066,-1732.0,0.00018805,2]
[402131280,1768535446075,-600.0,0.0001881,2]
[402131281,1768535446084,-888.93,0.00018811,2]
[402131282,1768535446093,-1732.0,0.0001882,2]
[402131283,1768535446102,-1732.0,0.00018881,2]
[402131284,1768535446111,-166.66,0.000189,2]
[402131285,1768535446121,-158.01,0.00018949,2]
[402131286,1768535446130,-1000.0,0.00018961,2]
[402131287,1768535446139,-610.095271,0.00018962,2]
[402131288,1768535446798,-1121.904729,0.00018962,2]
[402131289,1768535446808,-465.71477839,0.00018962,2]
[402131290,1768535446822,-5391.28522161,0.00018962,2]
[402131291,1768535446832,-2091.82625242,0.00019,2]
[402131292,1768535446843,-817.05,0.00019,2]
[402131293,1768535446868,-1065.32192759,0.00019,2]
[402131294,1768535446884,-1188.69941441,0.00019,2]
[402131295,1768535446893,-2259.99376713,0.00019,2]
[402131296,1768535446902,-1396.38627729,0.00019007,2]
[402131297,1768535617535,542.55217057,0.00030136,120]
[402131298,1768535640902,500.0,0.00030136,120]
[402131299,1768535924399,1027.0,0.00017,2]
[402131316,1768536083623,1602.0,0.000202,30]
[402131318,1768536631665,-300.0,0.0001737,2]
[402131319,1768536631675,-1200.0,0.0001737,2]
[402131320,1768536631684,-300.0,0.0001737,2]
[402131321,1768536631693,-4656.14724003,0.00017371,2]
[402131322,1768536631800,-536.05188292,0.00017371,2]
[402131323,1768536631811,-2756.47653188,0.00017371,2]
[402131324,1768536631837,-1949.6310886,0.00017371,2]
[402131325,1768536631849,-529.67461947,0.00017371,2]
[402131326,1768536631861,-486.87103,0.00017371,2]
[402131327,1768536631873,-1759.0,0.00017371,2]
[402131329,1768536631885,-694.14625423,0.00017371,2]
[402131332,1768536631917,-446.88,0.00017371,2]
[402131334,1768536631930,-330.31258309,0.00017371,2]
[402131339,1768536631959,-1583.65650017,0.00017371,2]
[402131341,1768536631970,-16435.33826598,0.00017371,2]
[402131343,1768536631980,-2457.84440136,0.00017371,2]
[402131345,1768536631991,-1477.96960227,0.00017371,2]
[402131347,1768536632001,-83.36055739,0.0001746,2]
[402131372,1768536637719,-613.21498029,0.0001746,2]
[402131373,1768536637731,-44.20446232,0.0001746,2]
[402131374,1768536637741,-151.0,0.0001746,2]
[402131375,1768536637751,-151.0,0.0001746,2]
[402131376,1768536637761,-151.0,0.0001746,2]
[402131377,1768536637771,-151.0,0.0001746,2]
[402131378,1768536637781,-160.85092304,0.0001746,2]
[402131379,1768536637791,-151.0,0.00017538,2]
[402131380,1768536637800,-151.0,0.00017547,2]
[402131381,1768536637810,-151.0,0.00017547,2]
[402131382,1768536637820,-3.95578668,0.00017564,2]
[402131383,1768536637835,-147.04421332,0.00017564,2]
[402131384,1768536637846,-151.0,0.00017564,2]
[402131385,1768536637855,-257.91,0.000176,2]
[402131386,1768536637864,-78.64480309,0.00017616,2]
[402131387,1768536637877,-121.35519691,0.00017616,2]
[402131388,1768536637887,-740.78,0.00017734,2]
[402131389,1768536637896,-34.26662808,0.00017847,2]
[402131390,1768536637921,-437.73337192,0.00017847,2]
[402131391,1768536637930,-166.66,0.00017857,2]
[402131392,1768536637940,-472.0,0.00017863,2]
[402131393,1768536637950,-323.0,0.00017864,2]
[402131394,1768536637960,-6425.46626448,0.00017865,2]
[402131395,1768536637971,-9999.99,0.00017865,2]
[402131396,1768536637980,-181.17,0.00017872,2]
[402131397,1768536637990,-1185.87,0.00017872,2]
[402131398,1768536637999,-472.0,0.00017895,2]
[402131399,1768536638008,-472.0,0.00017909,2]
[402131400,1768536638017,-1778.32,0.00017988,2]
[402131401,1768536638027,-415.4250427,0.00018,2]
[402131402,1768536638040,-740.78,0.00018008,2]
[402131403,1768536638050,-472.0,0.00018051,2]
[402131404,1768536638059,-472.0,0.00018118,2]
[402131405,1768536638069,-757.8,0.00018159,2]
[402131406,1768536638078,-472.0,0.00018173,2]
[402131408,1768536638089,-671.15,0.00018201,2]
[402131410,1768536638098,-472.0,0.00018213,2]
[402131412,1768536638108,-166.66,0.00018232,2]
[402131414,1768536638117,-740.78,0.00018282,2]
[402131416,1768536638126,-472.0,0.00018377,2]
[402131418,1768536638135,-1500.0,0.00018385,2]
[402131420,1768536638145,-472.0,0.00018475,2]
[402131422,1768536638155,-740.78,0.00018556,2]
[402131424,1768536638165,-166.66,0.00018608,2]
[402131426,1768536638175,-232.06738815,0.00018627,2]
[402131428,1768536638185,-472.0,0.00018674,2]
[402131430,1768536638194,-472.0,0.00018749,2]
[402131433,1768536638205,-740.82825745,0.0001883,2]
[402131435,1768536638214,-472.0,0.00018832,2]
[402131437,1768536638224,-181.17,0.00018865,2]
[402131439,1768536638237,-94935.1657368,0.00018886,2]
[402131441,1768536638247,-2336.2992021,0.00018886,2]
[402131443,1768536638257,-472.0,0.00018913,2]
[402131445,1768536638266,-472.0,0.00018916,2]
[402131447,1768536638275,-472.0,0.00018922,2]
[402131449,1768536638285,-420.0,0.00018964,2]
[402131451,1768536638294,-420.0,0.00018964,2]
[402131453,1768536638304,-166.66,0.00018984,2]
[402131455,1768536638314,-335.61372271,0.00019007,2]
[402131457,1768536638323,-1680.0,0.00019058,2]
[402131459,1768536638333,-1101.0,0.00019079,2]
[402131461,1768536638343,-472.0,0.00019081,2]
[402131463,1768536638353,-200.22037816,0.00019082,2]
[402131465,1768536638363,-1000.0,0.00019084,2]
[402131467,1768536638373,-671.15,0.00019111,2]
[402131469,1768536638382,-5857.0,0.00019144,2]
[402131471,1768536638392,-472.0,0.00019163,2]
[402131473,1768536638402,-500.0,0.00019205,2]
[402131476,1768536638412,-5857.0,0.00019208,2]
[402131478,1768536638421,-472.0,0.00019225,2]
[402131480,1768536638434,-472.0,0.00019267,2]
[402131482,1768536638445,-472.0,0.00019354,2]
[402131484,1768536638455,-1600.0,0.00019359,2]
[402131486,1768536638464,-166.66,0.0001936,2]
[402131488,1768536638474,-472.0,0.00019441,2]
[402131491,1768536638484,-166.66,0.00019485,2]
[402131493,1768536638494,-1000.0,0.000196,2]
[402131495,1768536638505,-708.59,0.00019643,2]
[402131497,1768536638516,-166.66,0.00019736,2]
[402131499,1768536638526,-155.0,0.00019799,2]
[402131501,1768536638535,-181.17,0.00019858,2]
[402131503,1768536638545,-991.31,0.0002,2]
[402131504,1768536638554,-150.0,0.0002,2]
[402131505,1768536638564,-671.15,0.00020021,2]
[402131506,1768536638574,-757.8,0.00020045,2]
[402131507,1768536638584,-166.66,0.00020071,2]
[402131508,1768536638595,-1101.0,0.00020083,2]
[402131509,1768536638604,-158.01,0.00020303,2]
[402131510,1768536638614,-500.0,0.00020384,2]
[402131511,1768536638627,-250.0,0.00020534,2]
[402131512,1768536638636,-166.66,0.00020656,2]
[402131513,1768536638646,-587.0,0.00020706,2]
[402131514,1768536638656,-587.0,0.00020706,2]
[402131515,1768536638665,-181.17,0.00020851,2]
[402131517,1768536638675,-40388.42925099,0.000209,30]
[402131518,1768536638684,-2351.0,0.00020911,2]
[402131519,1768536638693,-2336.2992021,0.0002093,2]
[402131521,1768536638703,-671.15,0.00020931,2]
[402131523,1768536638713,-500.0,0.00021068,2]
[402131525,1768536638723,-1101.0,0.0002114,2]
[402131527,1768536638733,-1000.0,0.0002147,2]
[402131529,1768536638742,-23239.28047448,0.00021484,2]
[402131531,1768536638755,-1375.75358719,0.00021484,2]
[402131534,1768536638768,-4105.21849641,0.00021484,2]
[402131536,1768536638780,-469.58951014,0.00021484,2]
[402131538,1768536638791,-27245.75181204,0.00021484,2]
[402131542,1768536638811,-2167.29775329,0.00021484,2]
[402131544,1768536638825,-5008.83849821,0.00021484,2]
[402131547,1768536638844,-28599.867978,0.00021484,2]
[402131659,1768536639778,-2723.56762704,0.00021484,2]
[402131662,1768536639788,-1600.0,0.0002151,2]
[402131664,1768536639797,-671.15,0.00021841,2]
[402131666,1768536639807,-181.17,0.00021844,2]
[402131668,1768536639817,-5000.0,0.00021918,2]
[402131670,1768536639826,-151.0,0.00021918,2]
[402131672,1768536639840,-757.8,0.00021931,2]
[402131674,1768536639849,-502.0,0.00022164,2]
[402131676,1768536639858,-1101.0,0.00022253,2]
[402131678,1768536639867,-151.0,0.00022466,2]
[402131680,1768536639878,-823.0,0.00022607,2]
[402131682,1768536639887,-823.0,0.00022607,2]
[402131684,1768536639896,-181.17,0.00022837,2]
[402131686,1768536639906,-1275.37842369,0.00022944,2]
[402131695,1768536640002,-2016.62157631,0.00022944,2]
[402131697,1768536640012,-781.95437181,0.00022974,2]
[402131700,1768536640025,-958.1661177,0.00022974,2]
[402131702,1768536640036,-596.17871259,0.00022974,2]
[402131704,1768536640045,-151.0,0.00023014,2]
[402131706,1768536640053,-858.80756241,0.00023321,2]
[402131708,1768536640064,-977.00345705,0.00023321,2]
[402131736,1768536640322,-1022.52820613,0.00023321,2]
[402131960,1768536642736,-2510.899293,0.00023321,2]
[402131966,1768536642784,-3630.76148141,0.00023321,2]
[402131968,1768536642793,-2957.01455159,0.00023321,2]
[402132146,1768536644578,-680.76275655,0.00023321,2]
[402132209,1768536645641,-5103.0,0.00023321,2]
[402132210,1768536645653,-380.83569183,0.00023321,2]
[402132211,1768536645664,-586.88085669,0.00023321,2]
[402132212,1768536645674,-153.65156995,0.00023321,2]
[402132213,1768536645684,-199.2892777,0.00023321,2]
[402132214,1768536645803,-2800.7107223,0.00023321,2]
[402132215,1768536645813,-1061.24408735,0.00023321,2]
[402132216,1768536645823,-3000.0,0.00023321,2]
[402132217,1768536645834,-3000.0,0.00023321,2]
[402132218,1768536645845,-3000.0,0.00023321,2]
[402132219,1768536645855,-3000.0,0.00023321,2]
[402132220,1768536645865,-3000.0,0.00023321,2]
[402132221,1768536645877,-2000.0,0.00023321,2]
[402132222,1768536645888,-1609.13658287,0.00023321,2]
[402132223,1768536645898,-3000.0,0.00023321,2]
[402132224,1768536645909,-612.57082655,0.00023321,2]
[402132225,1768536645919,-2000.0,0.00023321,2]
[402132226,1768536645929,-3000.0,0.00023321,2]
[402132227,1768536645939,-2000.0,0.00023321,2]
[402132228,1768536645949,-3000.0,0.00023321,2]
[402132229,1768536645962,-2000.0,0.00023321,2]
[402132230,1768536645973,-3000.0,0.00023321,2]
[402132231,1768536645983,-3000.0,0.00023321,2]
[402132232,1768536645993,-2000.0,0.00023321,2]
[402132233,1768536646003,-732.53437282,0.00023321,2]
[402132234,1768536646013,-1810.22254301,0.00023321,2]
[402132235,1768536646036,-500.0,0.00023321,2]
[402132236,1768536646060,-444.81816065,0.00023321,2]
[402132241,1768537219839,-300.0,0.00017369,2]
[402132242,1768537219861,-182.47147323,0.00017369,2]
[402132243,1768537221038,-117.52852677,0.00017369,2]
[402132244,1768537221063,-139.56962261,0.00017369,2]
[402132245,1768537227761,592.65618582,0.00030137,120]
[402132246,1768537271360,1600.0,0.00027261,120]
[402132247,1768537271678,1600.0,0.00029987,120]
[402132248,1768537505354,500.0,0.00030137,120]
[402132249,1768537519337,500.0,0.00030137,120]
[402132250,1768537535152,-1626.913,0.00017023,2]
[402132251,1768537535174,-211.967,0.00017023,2]
[402132252,1768537535194,-300.0,0.00017369,2]
[402132253,1768537535215,-300.0,0.00017369,2]
[402132254,1768537535236,-1200.0,0.00017369,2]
[402132255,1768537535260,-500.0,0.0001737,2]
[402132256,1768537535284,-500.0,0.0001737,2]
[402132257,1768537535307,-500.0,0.0001737,2]
[402132258,1768537535332,-428.78617747,0.0001737,2]
[402132259,1768537535356,-74.68745283,0.0001737,2]
[402132261,1768537648131,-500.0,0.0001737,2]
[402132262,1768537648159,-500.0,0.0001737,2]
[402132263,1768537648184,-250.73323356,0.0001737,2]
[402132264,1768537648205,-300.0,0.0001737,2]
[402132265,1768537648232,-8669.19442805,0.00017371,2]
[402132266,1768537714617,-313.26281306,0.00017371,2]
[402132267,1768537719241,-256.4178067,0.00017371,2]
[402132268,1768537722049,-514.39939241,0.00017371,2]
[402132269,1768537744576,-300.0,0.0001737,2]
[402132276,1768537831774,-930.3843383,0.0001737,2]
[402132278,1768537831784,-1200.0,0.0001737,2]
[402132280,1768537831794,-300.0,0.0001737,2]
[402132282,1768537831804,-930.38433822,0.00017429,2]
[402132283,1768537831814,-500.0,0.0001747,2]
[402132284,1768537831824,-930.38433822,0.00017488,2]
[402132285,1768537831834,-930.38433822,0.00017547,2]
[402132286,1768537831843,-930.38433822,0.00017606,2]
[402132287,1768537831853,-930.38433822,0.00017664,2]
[402132288,1768537831863,-930.38433822,0.00017723,2]
[402132289,1768537831872,-5968.3,0.00017747,2]
[402132290,1768537831882,-930.38433822,0.00017782,2]
[402132291,1768537831892,-930.38433822,0.00017841,2]
[402132292,1768537831902,-1423.48063068,0.000179,2]
[402132293,1768537831912,-930.38433822,0.000179,2]
[402132294,1768537831922,-156.87669301,0.000179,2]
[402132295,1768537831933,-300.0,0.00017999,2]
[402132296,1768537831943,-671.00190679,0.00017999,2]
[402132297,1768537831954,-198.15873995,0.00017999,2]
[402132298,1768537831963,-316.9295283,0.00017999,2]
[402132299,1768537831973,-179.31644761,0.00017999,2]
[402132300,1768537831983,-500.0,0.00017999,2]
[402132301,1768537831993,-336.59378405,0.00017999,2]
[402132302,1768537832004,-500.0,0.00017999,2]
[402132303,1768537832324,-500.0,0.00017999,2]
[402132304,1768537832359,-55617.84949303,0.00018,2]
[402132305,1768537832371,-607.81174819,0.00018,2]
[402132306,1768537832383,-1131.92990948,0.00018,2]
[402132307,1768537832410,-966.31513522,0.00018,2]
[402132308,1768537832422,-2151.7138018,0.00018,2]
[402132309,1768537832434,-977.95038533,0.00018,2]
[402132310,1768537832445,-2548.73865149,0.00018,2]
[402132311,1768537832467,-397.84647269,0.00018,2]
[402132312,1768537832478,-1958.42417155,0.00018,2]
[402132313,1768537832489,-1023.31953828,0.00018,2]
[402132314,1768537832505,-2939.56562393,0.00018,2]
[402132315,1768537832535,-1516.48438079,0.00018,2]
[402132316,1768537832546,-387.11639996,0.00018,2]
[402132317,1768537832557,-2898.9649607,0.00018,2]
[402132318,1768537832568,-297.04785907,0.00018,2]
[402132319,1768537832579,-1680.66735613,0.00018,2]
[402132320,1768537832591,-1417.72818,0.00018,2]
[402132321,1768537832620,-8256.59180716,0.00018,2]
[402132322,1768537832632,-1693.63405355,0.00018,2]
[402132323,1768537832643,-3254.51138063,0.00018,2]
[402132324,1768537832654,-2170.13470182,0.00018,2]
[402132326,1768537838018,-8734.84364216,0.00018,2]
[402132381,1768537838679,-62795.13506575,0.00018,2]
[402132384,1768537838695,-1604606.56383466,0.00018,2]
[402132388,1768537838728,-2887.62734882,0.00018,2]
[402132541,1768537840251,-6735954.86238382,0.00018,2]
[402132774,1768537842990,-4800.0,0.00018,2]
[402132775,1768537843002,-1101.67906385,0.00018,2]
[402132778,1768537846016,-11185.38204497,0.00018,2]
[402132779,1768537846083,-39805.57766054,0.00018,2]
[402132780,1768537846140,-5045.84067772,0.00018,2]
[402132781,1768537924145,154.66,0.00010607,2]
[402132782,1768537924978,154.66,0.00011269,2]
[402132783,1768537925421,154.66,0.00011932,2]
[402132784,1768537925479,154.66,0.00012595,2]
[402132785,1768537925566,154.66,0.00013258,2]
[402132786,1768537925665,154.66,0.00013921,2]
[402132787,1768537925743,154.66,0.00014584,2]
[402132788,1768537926004,154.66,0.00015247,2]
[402132789,1768537926065,154.66,0.0001591,2]
[402132790,1768537926252,154.66,0.00016573,2]
[402132791,1768538507090,166.66,0.00016933,2]
[402132792,1768538843128,-500.0,0.00017003,3]
[402132793,1768538843150,-154.66,0.00017236,2]
[402132794,1768538843171,-166.66,0.00017289,2]
[402132795,1768538843191,-166.66,0.00017646,2]
[402132796,1768538843212,-151.0,0.00017666,2]
[402132797,1768538843232,-151.0,0.00017666,2]
[402132798,1768538843252,-530.42704306,0.00017799,2]
[402132799,1768538843274,-160.20238738,0.00017799,2]
[402132800,1768538843295,-1746.73456635,0.000178,2]
[402132801,1768538843318,-1200.0,0.0001781,2]
[402132802,1768538843339,-1746.7345663,0.00017811,2]
[402132803,1768538843361,-1746.7345663,0.00017822,2]
[402132804,1768538843381,-199.0,0.00017832,2]
[402132805,1768538843402,-1746.7345663,0.00017833,2]
[402132806,1768538843422,-1746.7345663,0.00017844,2]
[402132807,1768538843443,-1746.7345663,0.00017856,2]
[402132808,1768538843468,-1746.7345663,0.00017867,2]
[402132809,1768538843491,-1746.7345663,0.00017878,2]
[402132810,1768538843514,-1746.7345663,0.00017889,2]
[402132811,1768538843535,-1554.166,0.00017889,2]
[402132812,1768538843558,-500.0,0.00017898,2]
[402132813,1768538843579,-500.0,0.00017898,2]
[402132814,1768538843601,-500.0,0.00017898,2]
[402132815,1768538843621,-500.0,0.00017898,2]
[402132816,1768538843642,-500.0,0.00017898,2]
[402132817,1768538843663,-500.0,0.00017898,2]
[402132818,1768538843684,-500.0,0.00017898,2]
[402132819,1768538843706,-227.66488452,0.00017898,2]
[402132820,1768538843727,-500.0,0.00017898,2]
[402132821,1768538843748,-500.0,0.00017898,2]
[402132822,1768538843770,-500.0,0.00017898,2]
[402132823,1768538843793,-500.0,0.00017898,2]
[402132824,1768538843814,-500.0,0.00017898,2]
[402132825,1768538843836,-500.0,0.00017898,2]
[402132826,1768538843857,-500.0,0.00017898,2]
[402132827,1768538843879,-500.0,0.00017898,2]
[402132828,1768538843901,-500.0,0.00017898,2]
[402132829,1768538843922,-500.0,0.00017898,2]
[402132830,1768538843943,-500.0,0.00017898,2]
[402132831,1768538844229,-500.0,0.00017898,2]
[402132832,1768538844251,-500.0,0.00017898,2]
[402132833,1768538844273,-500.0,0.00017898,2]
[402132834,1768538844294,-500.0,0.00017898,2]
[402132835,1768538844315,-500.0,0.00017898,2]
[402132836,1768538844336,-500.0,0.00017898,2]
[402132837,1768538844358,-500.0,0.00017898,2]
[402132838,1768538844379,-500.0,0.00017898,2]
[402132839,1768538844401,-500.0,0.00017898,2]
[402132840,1768538844422,-500.0,0.00017898,2]
[402132841,1768538844442,-500.0,0.00017898,2]
[402132842,1768538844469,-500.0,0.00017898,2]
[402132843,1768538844491,-500.0,0.00017898,2]
[402132844,1768538844512,-500.0,0.00017898,2]
[402132845,1768538844537,-500.0,0.00017898,2]
[402132846,1768538844557,-154.66,0.00017899,2]
[402132847,1768538844580,-8707.27266498,0.00017899,2]
[402132849,1768539031940,-181.17,0.00017528,2]
[402132850,1768539031950,-300.0,0.00017797,2]
[402132851,1768539031960,-1200.0,0.00017797,2]
[402132852,1768539031969,-13951.16922637,0.00017798,2]
[402132853,1768539031980,-539.95972738,0.00017798,2]
[402132854,1768539031991,-4322.6063685,0.00017798,2]
[402132855,1768539032009,-677.36324147,0.00017798,2]
[402132856,1768539032020,-304.24350998,0.00017798,2]
[402132857,1768539032063,-289.88510599,0.00017798,2]
[402132858,1768539032112,-4742.63241699,0.00017798,2]
[402132859,1768539032125,-29120.33030332,0.00017798,2]
[402132860,1768539032136,-1787.8787637,0.00017799,2]
[402132861,1768539032147,-1787.87876367,0.0001781,2]
[402132862,1768539032156,-1787.87876367,0.00017821,2]
[402132863,1768539032165,-1787.87876367,0.00017833,2]
[402132864,1768539032175,-1787.87876367,0.00017844,2]
[402132865,1768539032184,-1787.87876367,0.00017855,2]
[402132866,1768539032193,-1787.87876367,0.00017866,2]
[402132867,1768539032202,-1787.87876367,0.00017878,2]
[402132868,1768539032211,-1787.87876367,0.00017889,2]
[402132869,1768539032221,-182.94281268,0.00017899,2]
[402132871,1768539032230,-322.73280647,0.00017899,2]
[402132872,1768539032239,-482.7889771,0.00017899,2]
[402132873,1768539032249,-653.2218,0.00017899,2]
[402132874,1768539032258,-25000.0,0.000179,3]
[402132875,1768539032267,-10000.0,0.000179,2]
[402132876,1768539032276,-1787.87876367,0.000179,2]
[402132877,1768539032286,-300.0,0.00017999,2]
[402132878,1768539032295,-500.0,0.00017999,2]
[402132879,1768539032305,-500.0,0.00017999,2]
[402132881,1768539032314,-221.85066981,0.00017999,2]
[402132883,1768539032323,-285.61564883,0.00017999,2]
[402132886,1768539032332,-500.0,0.00017999,2]
[402132887,1768539032342,-500.0,0.00017999,2]
[402132889,1768539032351,-500.0,0.00017999,2]
[402132891,1768539032360,-172.76648845,0.00017999,2]
[402132893,1768539032369,-6619.45002549,0.00018,2]
[402132894,1768539032381,-1210.11489401,0.00018,2]
[402132895,1768539032403,-128411.65256619,0.00018,2]
[402132897,1768539038187,-2047.57159741,0.00018,2]
[402132898,1768539038251,-826.46475886,0.00018,2]
[402132899,1768539038263,-791.20191441,0.00018,2]
[402132900,1768539038309,-386.1649995,0.00018,2]
[402132901,1768539038371,-676.09715279,0.00018,2]
[402132902,1768539038428,-692.86133845,0.00018,2]
[402132903,1768539038442,-2561.05922123,0.00018,2]
[402132904,1768539038454,-7589.36398178,0.00018,2]
[402132905,1768539038467,-1371.9211064,0.00018,2]
[402132906,1768539038494,-328.205,0.00018,2]
[402132907,1768539038506,-1604606.56383466,0.00018,2]
[402132908,1768539038604,-1103.16022683,0.00018,2]
[402132909,1768539038617,-1523.42760257,0.00018,2]
[402132918,1768539040321,-252.35381606,0.000179,2]
[402132919,1768539040330,-3054.53600322,0.00018,2]
[402132920,1768539040342,-400.88155885,0.00018,2]
[402132921,1768539040353,-395.92311807,0.00018,2]
[402132922,1768539040376,-315.32000001,0.00018,2]
[402132923,1768539040389,-843.40981153,0.00018,2]
[402132924,1768539040491,-889.00551276,0.00018,2]
[402132925,1768539040601,-18106.51306433,0.00018,2]
[402132926,1768539040616,-1729.9999,0.00018,2]
[402132927,1768539040657,-1644.6169307,0.00018,2]
[402132928,1768539040670,-4056954.73384381,0.00018,2]
[402132929,1768539040680,-171076.9789937,0.00018,2]
[402132930,1768539040690,-14241.66323631,0.00018,2]
[402132931,1768539040700,-1546230.37797131,0.00018,2]